Cogmind - Beta 11 @@@ ROGUE MODE // 2022.04.15 @ 01:27:55 Player: ktur Result: Destroyed by G-47 Trooper with Particle Gun Performance ------------- Evolutions (3) 1500 Regions Visited (11) 2200 Robots Destroyed (112) 560 Value Destroyed (2642) 2642 Prototype IDs (30) 600 Alien Tech Used (0) 0 Bonus (807) 807 TOTAL SCORE: 8309 Bonus ------- Follower Combat Kills 7 Entered DSFs 500 Aligned with FarCom 300 Cogmind --------- Core Integrity 0/700 Matter 92/300 Energy 35/100 System Corruption 2% Temperature Cool (27) Movement Core (50) Location -7/DSF Parts ------- > --- POWER (1) -------- (None) > --- PROPULSION (3) --- (None) > --- UTILITY (7) ------ Improved Signal Interpreter Hacking Suite Hacking Suite Hacking Suite > --- WEAPON (2) ------- (None) > --- INVENTORY (5) ---- Aerolev Unit Flying Fortress v7 Peak State ------------ > --- POWER ------------ Light Nuclear Core > --- PROPULSION ------- Aerolev Unit Aerolev Unit Aerolev Unit > --- UTILITY ---------- Medium Storage Unit Improved Sensor Array Improved Signal Interpreter Hacking Suite Hacking Suite Hacking Suite Hacking Suite > --- WEAPON ----------- Rocket Array Axe > --- INVENTORY -------- Aerolev Unit Cooled Airjet Flying Fortress v7 System Shield Corruption Screen Trap Extractor Heavy Missile Launcher [Rating: 47] Favorites ----------- Power Improved Ion Engine Engine Improved Ion Engine Power Core Light Nuclear Core Propulsion Light Treads Treads Light Treads Hover Unit Aerolev Unit Flight Unit Surge Thruster Utility Improved Targeting Computer Device Structural Scanner Storage High-capacity Storage Unit Processor Improved Targeting Computer Hackware Hacking Suite Protection Light Armor Plating Weapon Autogun Ballistic Gun Autogun Launcher Heavy Missile Launcher Slashing Weapon Axe Special Melee Weapon Improved Datajack Build | -11 -10 -10 -9 -9 -9 -8 -8 -7 -7 -7 -7 ------- Run | Scr Mat Min Mat Min Exi Min Mat Fac Was Fac DSF Slots Evolved 6 | . . . 2 . . . 2 2 . . . Power . | . . . . . . . . . . . . Propulsion 1 | . . . 1 . . . . . . . . Utility 5 | . . . 1 . . . 2 2 . . . Weapon . | . . . . . . . . . . . . Parts Attached 94 | 6 5 4 13 2 2 2 25 19 2 . 14 Power 9 | 1 1 1 1 . . . 1 2 . . 2 Engine 4 | 1 1 1 1 . . . . . . . . Core 5 | . . . . . . . 1 2 . . 2 Reactor . | . . . . . . . . . . . . Propulsion 32 | 2 . 1 9 . 1 1 5 9 . . 4 Treads 17 | 2 . 1 8 . 1 1 4 . . . . Leg . | . . . . . . . . . . . . Wheel . | . . . . . . . . . . . . Hover 12 | . . . . . . . 1 8 . . 3 Flight 3 | . . . 1 . . . . 1 . . 1 Utility 23 | 1 2 . 1 1 . 1 9 5 2 . 1 Device 8 | . . . . . . 1 2 3 1 . 1 Storage 5 | 1 1 . . . . . 2 1 . . . Processor 4 | . 1 . 1 . . . 1 . 1 . . Hackware 4 | . . . . . . . 3 1 . . . Protection 2 | . . . . 1 . . 1 . . . . Artifact . | . . . . . . . . . . . . Weapon 30 | 2 2 2 2 1 1 . 10 3 . . 7 Energy Gun . | . . . . . . . . . . . . Energy Cannon . | . . . . . . . . . . . . Ballistic Gun 15 | 2 2 2 2 1 1 . 5 . . . . Ballistic Cannon . | . . . . . . . . . . . . Launcher 8 | . . . . . . . 1 1 . . 6 Special Weapon . | . . . . . . . . . . . . Impact Weapon . | . . . . . . . . . . . . Slashing Weapon 4 | . . . . . . . 3 . . . 1 Piercing Weapon . | . . . . . . . . . . . . Special Melee Weapon 3 | . . . . . . . 1 2 . . . Unidentified Prototypes 7 | . . . 1 . . . 3 3 . . . Corrupted Parts 1 | . . . . . . . . . . . 1 System Corruption 1 | . . . . . . . . . . . 1 Parts Lost 13 | . . 2 . . . 1 2 . . . 8 Power 2 | . . 1 . . . . . . . . 1 Propulsion 5 | . . 1 . . . . 1 . . . 3 Utility 4 | . . . . . . 1 1 . . . 2 Weapon 2 | . . . . . . . . . . . 2 Highest Loss Streak 7 | . . 2 . . . 1 1 . . . 7 To Critical Strikes . | . . . . . . . . . . . . Average Slot Usage (%) 96 | . 99 99 100 100 94 86 85 99 100 100 83 Engine 9 | . 14 13 11 11 11 11 1 . . . . Core 1 | . . . . . . . 7 6 7 7 3 Treads 26 | . 28 27 33 33 33 33 21 . . . . Hover 2 | . . . . . . . . 23 23 23 16 Device 1 | . . . . . . 7 3 6 4 7 5 Storage 12 | . 14 14 11 11 11 11 18 7 7 7 7 Processor 14 | . 13 14 22 11 11 11 16 7 9 7 7 Hackware 3 | . . . . . . . . 29 30 30 28 Protection 2 | . . . . 10 11 1 5 . . . . Ballistic Gun 18 | . 28 28 22 22 17 11 8 . . . . Naked Turns . | . . . . . . . . . . . . Heaviest Build 62 | 11 51 53 53 56 60 60 62 59 20 20 21 Greatest Support 60 | 40 40 40 60 60 60 60 60 24 24 24 24 Greatest Overweight (x) 3 | 2 1 2 . . . . 1 2 . . 3 Average Overweight (x) . | . . 1 . . . . . . . . . Largest Inventory Capacity 20 | 8 20 20 20 20 20 20 20 20 10 10 10 Average Capacity 18 | 7 16 20 20 20 20 20 20 10 10 10 9 Most Carried 20 | 6 19 20 20 20 20 20 20 19 10 10 10 Average Carried 17 | 3 13 19 19 19 19 19 19 10 9 10 9 Final Capacity 20 | 8 20 20 20 20 20 20 20 10 10 10 5 Final Carried 20 | 6 19 20 20 20 20 20 19 10 10 10 5 Class Distribution -------------------- 47% | Scavenger-Mutant 42% | Mutant 9% | Hacker-Mutant Dominant Class ---------------- Mutant | -10/Materials Mutant | -10/Mines Scavenger-Mutant | -9/Materials Scavenger-Mutant | -9/Mines Scavenger-Mutant | -9/Exiles Scavenger-Mutant | -8/Mines Scavenger-Mutant | -8/Materials Hacker-Mutant | -7/Factory Hacker-Mutant | -7/Waste Hacker-Mutant | -7/Factory Hacker-Mutant | -7/DSF Resources | -11 -10 -10 -9 -9 -9 -8 -8 -7 -7 -7 -7 ----------- Run | Scr Mat Min Mat Min Exi Min Mat Fac Was Fac DSF Matter Collected 2244 | 237 368 89 818 156 . 40 334 167 . . 35 Remotely . | . . . . . . . . . . . . Salvage Created 3736 | . 780 154 1216 206 . 525 643 167 . . 45 Parts 243 | . 52 14 73 15 . 30 28 19 . . 12 Haulers Intercepted 10 | . 1 . 6 . . . 2 1 . . . Recyclers Shooed 5 | . 1 . 4 . . . . . . . . Parts Field Recycled . | . . . . . . . . . . . . Retrieved Matter . | . . . . . . . . . . . . Parts Self-Destructed . | . . . . . . . . . . . . Prevented . | . . . . . . . . . . . . Kills | -11 -10 -10 -9 -9 -9 -8 -8 -7 -7 -7 -7 ------- Run | Scr Mat Min Mat Min Exi Min Mat Fac Was Fac DSF Combat Hostiles Destroyed 76 | . 15 5 16 9 . 14 11 . . . 6 Melee 2 | . . . . . . . . . . . 2 Guns 70 | . 15 5 16 9 . 14 11 . . . . AOE 4 | . . . . . . . . . . . 4 Classes Destroyed 15 | 1 5 1 4 1 . 2 . . . . 1 Worker 7 | . . . 1 1 . 2 2 1 . . . Builder 4 | . . . 1 . . . . 3 . . . Tunneler 1 | 1 . . . . . . . . . . . Hauler 10 | . 1 . 6 . . . 2 1 . . . Recycler 3 | . 1 . 2 . . . . . . . . Operator 8 | . 4 . 2 . . . . 2 . . . Watcher 3 | . . . 1 . . . 2 . . . . Swarmer 23 | . 3 3 3 4 . 7 3 . . . . Cutter 6 | . . . . . . . . . . . 6 Grunt 31 | . 12 . 7 3 . 5 4 . . . . Brawler 2 | . . . . . . 1 1 . . . . Duelist 1 | . . . 1 . . . . . . . . Sentry 9 | . . 2 5 . . . 2 . . . . Demolisher 2 | . . . . 2 . . . . . . . Hunter 2 | . . . . . . 1 1 . . . . Best Kill Streak 7 | 1 5 3 4 4 . 7 5 2 . . 3 Combat Bots Only 7 | . 5 3 4 4 . 7 3 . . . 3 Max Kills in Single Turn 2 | 1 2 2 1 1 . 1 1 1 . . 2 Gunslinging 1 | . 1 1 . . . . . . . . . Exploded 2 | . . . . . . . . . . . 2 Melee 1 | . . . . . . . . . . . 1 Uniques/NPCs Destroyed . | . . . . . . . . . . . . Combat | -11 -10 -10 -9 -9 -9 -8 -8 -7 -7 -7 -7 -------- Run | Scr Mat Min Mat Min Exi Min Mat Fac Was Fac DSF Damage Taken 3702 | . 437 173 699 270 . 257 459 67 . . 1340 Core 1126 | . 27 40 175 23 . 23 138 14 . . 686 Absorbed by Shields . | . . . . . . . . . . . . Regen/Repaired (Parts) 59 | . . . 59 . . . . . . . . Core Remaining (%) 72 | 100 . 73 . . . 44 74 . . . . Volleys Fired 170 | . 53 8 86 17 . . 1 . . . 5 Largest 2 | . 2 2 2 2 . . 1 . . . 1 Hottest 46 | . 46 46 46 46 . . 23 . . . 43 Shots Fired 448 | . 106 16 172 34 . 51 64 . . . 5 Gun 443 | . 106 16 172 34 . 51 64 . . . . Cannon . | . . . . . . . . . . . . Launcher 5 | . . . . . . . . . . . 5 Special . | . . . . . . . . . . . . Kinetic 443 | . 106 16 172 34 . 51 64 . . . . Thermal . | . . . . . . . . . . . . Explosive 4 | . . . . . . . . . . . 4 Electromagnetic 1 | . . . . . . . . . . . 1 Robot Hit Streak 27 | . 15 7 27 12 . 9 20 . . . . Robot Miss Streak 4 | . 3 3 3 2 . 2 4 . . . . Penetration Max . | . . . . . . . . . . . . Secondary Targets 8 | . 3 2 . 3 . . . . . . . Max Gunslinging Chain 1 | . 1 1 . 1 . . . . . . . Autonomous 114 | . . . . . . 51 63 . . . . Shots Hit Robots 335 | . 70 11 126 22 . 41 47 13 . . 5 Core Hits 145 | . 34 5 44 10 . 19 19 4 . . 10 Critical Kills 2 | . . 1 . . . . 1 . . . . Critical Parts Destroyed . | . . . . . . . . . . . . Critical Strikes 2 | . . 1 . . . . 1 . . . . Destroy 2 | . . 1 . . . . 1 . . . . Melee Attacks 44 | . . . . . . . 3 25 . . 16 Impact . | . . . . . . . . . . . . Slashing 40 | . . . . . . . 3 21 . . 16 Piercing . | . . . . . . . . . . . . Sneak Attacks 11 | . . . . . . . 2 9 . . . Combat Hostiles . | . . . . . . . . . . . . Follow-up Attacks . | . . . . . . . . . . . . Damage Inflicted 7573 | 8 1069 175 1980 360 . 1230 1514 593 . . 644 Guns 5991 | . 1035 158 1939 337 . 1180 1342 . . . . Cannons . | . . . . . . . . . . . . Explosions 477 | . . . . . . . . . . . 477 Melee 932 | . . . . . . . 172 593 . . 167 Ramming 173 | 8 34 17 41 23 . 50 . . . . . Kinetic 5991 | . 1035 158 1939 337 . 1180 1342 . . . . Thermal . | . . . . . . . . . . . . Explosive 451 | . . . . . . . . . . . 451 Electromagnetic 26 | . . . . . . . . . . . 26 Impact . | . . . . . . . . . . . . Slashing 932 | . . . . . . . 172 593 . . 167 Piercing . | . . . . . . . . . . . . Highest Corruption 2 | . . . . . . . . 1 1 1 2 Average Corruption 1 | . . . . . . . . 1 1 1 1 Corruption Purged . | . . . . . . . . . . . . Corruption Blocked 6 | . . . . . . . . . 6 . . Effects 2 | . . . . . . . . 1 . . 1 Matter Fused 1 | . . . . . . . . 1 . . . Data Loss (minor) 1 | . . . . . . . . . . . 1 Overload Shots . | . . . . . . . . . . . . Overflow Damage 207 | . . . . . . . 4 187 . . 16 Projectiles . | . . . . . . . . . . . . Explosions 1 | . . . . . . . . . . . 1 Melee 206 | . . . . . . . 4 187 . . 15 Knockbacks 1 | . 1 . . . . . . . . . . Impact 1 | . 1 . . . . . . . . . . Kinetic . | . . . . . . . . . . . . Secondary . | . . . . . . . . . . . . Self-Inflicted Damage 165 | . . . . . . . . . . . 165 Shots 5 | . . . . . . . . . . . 5 Rammed 19 | . 6 3 2 2 . 6 . . . . . Targets Rammed 20 | 1 6 3 2 2 . 6 . . . . . Kicked . | . . . . . . . . . . . . Crushed 1 | 1 . . . . . . . . . . . Highest Temperature 43 | . 7 41 22 43 . . 9 . . . . Average Temperature 6 | . 2 22 4 13 . . 4 . . . . Received Heat Transfer 858 | . 183 99 291 45 . 45 150 9 . . 36 Siege Activations . | . . . . . . . . . . . . Robots Corrupted . | . . . . . . . . . . . . Combat Hostiles . | . . . . . . . . . . . . Parts Fried . | . . . . . . . . . . . . Impact Corruptions . | . . . . . . . . . . . . Robots Melted . | . . . . . . . . . . . . Combat Hostiles . | . . . . . . . . . . . . Parts Melted . | . . . . . . . . . . . . Heat Transferred . | . . . . . . . . . . . . Parts Sabotaged . | . . . . . . . . . . . . Parts Stolen . | . . . . . . . . . . . . Parts Stripped . | . . . . . . . . . . . . Power Chain Reactions . | . . . . . . . . . . . . Missiles Intercepted . | . . . . . . . . . . . . Alert | -11 -10 -10 -9 -9 -9 -8 -8 -7 -7 -7 -7 ------- Run | Scr Mat Min Mat Min Exi Min Mat Fac Was Fac DSF Peak Influence 339 | 5 267 70 233 122 . 339 249 58 30 21 149 Initial 57 | . 3 27 . 57 . . 5 . . 21 14 Average 81 | . 124 18 91 54 . 148 124 11 5 21 94 Maximum Alert Level 1 | . 1 . 1 . . 1 1 . . . . Low Security (%) 91 | 100 80 100 90 100 . 75 96 100 100 100 100 Level 1 8 | . 19 . 9 . . 24 3 . . . . Level 2 . | . . . . . . . . . . . . Level 3 . | . . . . . . . . . . . . Level 4 . | . . . . . . . . . . . . Level 5 . | . . . . . . . . . . . . High Security . | . . . . . . . . . . . . Max Security . | . . . . . . . . . . . . Squads Dispatched 13 | . 5 . 2 . . . . 3 . . 3 Investigation 2 | . 1 . . . . . . 1 . . . Extermination 2 | . . . . . . . . 2 . . . Reinforcement 9 | . 4 . 2 . . . . . . . 3 Assault . | . . . . . . . . . . . . Garrison . | . . . . . . . . . . . . Intercept . | . . . . . . . . . . . . Searches Triggered . | . . . . . . . . . . . . Construction Impeded . | . . . . . . . . . . . . Haulers Reinforced . | . . . . . . . . . . . . Active Scanning Responses . | . . . . . . . . . . . . Cargo Convoy Interrupts . | . . . . . . . . . . . . Stealth | -11 -10 -10 -9 -9 -9 -8 -8 -7 -7 -7 -7 --------- Run | Scr Mat Min Mat Min Exi Min Mat Fac Was Fac DSF Distress Signals 6 | . 2 . 3 . . . 1 . . . . Communications Jammed . | . . . . . . . . . . . . Distress Signals . | . . . . . . . . . . . . Times Spotted 135 | . 40 5 25 10 . 13 12 10 6 . 14 Peak Tracking Total 9 | . 5 2 3 4 . 4 4 9 6 . 5 Tactical Retreats 2 | . 1 . . . . . . . . . 1 Traps | -11 -10 -10 -9 -9 -9 -8 -8 -7 -7 -7 -7 ------- Run | Scr Mat Min Mat Min Exi Min Mat Fac Was Fac DSF Traps Triggered 6 | . 2 . . . . . . 4 . . . Indirectly . | . . . . . . . . . . . . Trap Hack Attempts 15 | . . . . . . . 15 . . . . Triggered . | . . . . . . . . . . . . Disarmed . | . . . . . . . . . . . . Reprogrammed 7 | . . . . . . . 2 5 . . . Reused 1 | . . . . . . . . 1 . . . Traps Extracted 6 | . . . . . . . 2 4 . . . Installed . | . . . . . . . . . . . . Triggered 1 | . . . . . . . . 1 . . . Most Traps Carried 4 | . . . . . . . 2 4 4 4 4 Machines | -11 -10 -10 -9 -9 -9 -8 -8 -7 -7 -7 -7 ---------- Run | Scr Mat Min Mat Min Exi Min Mat Fac Was Fac DSF Machines Disabled 7 | . 1 . 1 . . 2 2 1 . . . Max in Single Turn 1 | . 1 . 1 . . 1 1 1 . . . Garrison Access 2 | . . . . . . . . 2 . . . Machines Sabotaged . | . . . . . . . . . . . . Garrisons Compromised . | . . . . . . . . . . . . Overloaded Fab Kills . | . . . . . . . . . . . . Hacking | -11 -10 -10 -9 -9 -9 -8 -8 -7 -7 -7 -7 --------- Run | Scr Mat Min Mat Min Exi Min Mat Fac Was Fac DSF Machines Accessed 42 | . 4 2 10 . 2 1 4 18 . 1 . Terminals 28 | . 4 1 7 . . 1 4 10 . 1 . Fabricators 1 | . . . . . . . . 1 . . . Repair Stations 1 | . . . 1 . . . . . . . . Recycling Units 2 | . . . . . . . . 2 . . . Scanalyzers 5 | . . . 2 . . . . 3 . . . Garrison Access 2 | . . . . . . . . 2 . . . Total Hacks 109 | . 15 4 28 . 4 6 11 40 . 1 . Successful 69 | . 4 2 17 . 4 3 6 32 . 1 . Failed 40 | . 11 2 11 . . 3 5 8 . . . Catastrophic 5 | . 1 . 2 . . . . 2 . . . Database Lockouts . | . . . . . . . . . . . . Manual 63 | . 9 3 14 . 1 6 11 19 . . . Terminals 81 | . 15 3 17 . . 6 11 28 . 1 . Fabricators 1 | . . . . . . . . 1 . . . Repair Stations 2 | . . . 2 . . . . . . . . Recycling Units 2 | . . . . . . . . 2 . . . Scanalyzers 16 | . . . 9 . . . . 7 . . . Garrison Access 2 | . . . . . . . . 2 . . . Terminal Hacks 35 | . 2 2 5 . 4 3 3 15 . 1 . Record 4 | . . . 1 . 3 . . . . . . Part Schematic 1 | . . . . . . . . 1 . . . Robot Analysis 2 | . . . . . . 1 . 1 . . . Open Door 1 | . . 1 . . . . . . . . . Open DSF 1 | . . . . . . . . . . 1 . Branch Access Points 1 | . . . . . . . . 1 . . . Terminal Index 1 | . . . . . . . . 1 . . . Alert Level 1 | . . . 1 . . . . . . . . Unreport Threat 10 | . . 1 1 . . 2 1 5 . . . Locate Traps 5 | . 1 . . . . . 2 2 . . . Reprogram Traps 1 | . . . . . . . . 1 . . . Transport Status 1 | . . . 1 . . . . . . . . Recall Investigation 1 | . . . . . . . . 1 . . . Recall Extermination 1 | . . . . . . . . 1 . . . Hauler Manifests 3 | . 1 . 1 . . . . 1 . . . EX-Prototype ID Bank 1 | . . . . . 1 . . . . . . Fabricator Hacks 1 | . . . . . . . . 1 . . . Network Status 1 | . . . . . . . . 1 . . . Repair Station Hacks 2 | . . . 2 . . . . . . . . Scan Component 1 | . . . 1 . . . . . . . . Repair 1 | . . . 1 . . . . . . . . Recycling Unit Hacks 2 | . . . . . . . . 2 . . . Retrieve Components 2 | . . . . . . . . 2 . . . Scanalyzer 15 | . . . 9 . . . . 6 . . . Insert Component 7 | . . . 4 . . . . 3 . . . Analyze 8 | . . . 5 . . . . 3 . . . Garrison Access Hacks 2 | . . . . . . . . 2 . . . Seal Access 2 | . . . . . . . . 2 . . . Unauthorized Hacks 12 | . 2 . 1 . . . 3 6 . . . Terminals 12 | . 2 . 1 . . . 3 6 . . . Botnet 8 | . 1 . . . . . 1 6 . . . Operators 4 | . 1 . 1 . . . 2 . . . . Fabricators . | . . . . . . . . . . . . Repair Stations . | . . . . . . . . . . . . Recycling Units . | . . . . . . . . . . . . Scanalyzers . | . . . . . . . . . . . . Garrison Access . | . . . . . . . . . . . . Data Cores Recovered 1 | . . . . . . . . 1 . . . Used 1 | . . . . . . . . 1 . . . Hacking Detections 34 | . 4 1 9 . . 1 4 14 . 1 . Full Trace Events 2 | . 1 . . . . . . 1 . . . Feedback Events 1 | . . . . . . . . 1 . . . Corruption 1 | . . . . . . . . 1 . . . Feedback Blocked . | . . . . . . . . . . . . Robot Schematics Acquired . | . . . . . . . . . . . . Robots Built . | . . . . . . . . . . . . Authchips . | . . . . . . . . . . . . Time . | . . . . . . . . . . . . Total Robot Build Rating . | . . . . . . . . . . . . Part Schematics Acquired 6 | . . . 3 . . . . 3 . . . Parts Built . | . . . . . . . . . . . . Authchips . | . . . . . . . . . . . . Time . | . . . . . . . . . . . . Total Part Build Rating . | . . . . . . . . . . . . Parts Repaired 1 | . . . 1 . . . . . . . . Time 32 | . . . 32 . . . . . . . . Parts Recycled . | . . . . . . . . . . . . Recycled Matter . | . . . . . . . . . . . . Retrieved Matter . | . . . . . . . . . . . . Retrieved Components 4 | . . . . . . . . 4 . . . Parts Scanalyzed 5 | . . . 3 . . . . 2 . . . Part Schematics Acquired 5 | . . . 3 . . . . 2 . . . Parts Damaged 1 | . . . . . . . . 1 . . . Bothacking | -11 -10 -10 -9 -9 -9 -8 -8 -7 -7 -7 -7 ------------ Run | Scr Mat Min Mat Min Exi Min Mat Fac Was Fac DSF Used RIF Installer . | . . . . . . . . . . . . Robots Hacked 3 | . . . . . . . . 3 . . . Non-combat 3 | . . . . . . . . 3 . . . Combat . | . . . . . . . . . . . . Robot Hacks Applied 3 | . . . . . . . . 3 . . . no_distress 2 | . . . . . . . . 2 . . . find_chute 1 | . . . . . . . . 1 . . . Relay Couplers Released . | . . . . . . . . . . . . Fabnet Peak Effective % . | . . . . . . . . . . . . Robots Rewired . | . . . . . . . . . . . . Allies Hacked . | . . . . . . . . . . . . Hacks Repelled . | . . . . . . . . . . . . Allies | -11 -10 -10 -9 -9 -9 -8 -8 -7 -7 -7 -7 -------- Run | Scr Mat Min Mat Min Exi Min Mat Fac Was Fac DSF Total Allies 3 | . . 1 . 2 . . . . . . . Largest Group 2 | . . 1 . 2 . . . . . . . Highest-Rated Group 48 | . . 31 . 48 . . . . . . . Highest-Rated Ally 31 | . . 31 . 31 . . . . . . . Total Orders . | . . . . . . . . . . . . Ally Attacks 9 | . . . . 9 . . . . . . . Total Damage 106 | . . . . 106 . . . . . . . Kills 1 | . . . . 1 . . . . . . . Allies Corrupted . | . . . . . . . . . . . . Allies Melted . | . . . . . . . . . . . . Intel | -11 -10 -10 -9 -9 -9 -8 -8 -7 -7 -7 -7 ------- Run | Scr Mat Min Mat Min Exi Min Mat Fac Was Fac DSF Robot Analysis Total 2 | . . . . . . 1 . 1 . . . Derelict Logs Recovered 2 | . . 2 . . . . . . . . . Drone Launches . | . . . . . . . . . . . . Drone Recoveries . | . . . . . . . . . . . . Exploration | -11 -10 -10 -9 -9 -9 -8 -8 -7 -7 -7 -7 ------------- Run | Scr Mat Min Mat Min Exi Min Mat Fac Was Fac DSF Turns Passed 9376 | 76 1440 1623 1755 1066 366 1033 1006 812 60 8 131 Spaces Moved 5716 | 40 570 658 895 543 225 638 397 1517 122 19 92 Core 19 | 6 . . . . . . . . . . 13 Treads 3960 | 34 570 658 895 543 225 638 397 . . . . Legs . | . . . . . . . . . . . . Wheels . | . . . . . . . . . . . . Hover 1737 | . . . . . . . . 1517 122 19 79 Flight . | . . . . . . . . . . . . Fastest Speed 42 | 50 160 240 160 160 160 160 160 42 42 42 42 Average Speed 143 | 151 209 240 160 160 160 160 233 42 42 42 57 Slowest Speed 320 | 160 240 320 160 160 160 160 240 162 42 42 200 Overloaded Moves . | . . . . . . . . . . . . Propulsion Burnouts . | . . . . . . . . . . . . Robots Hopped . | . . . . . . . . . . . . Cave-ins Triggered . | . . . . . . . . . . . . Exploration Rate (%) 60 | 5 76 99 74 99 60 97 34 41 76 1 69 Regions Visited 11 Branch Regions 4 Pre-discovered Areas 1 | . . . . . 1 . . . . . . Known Exits Taken 4 | . . . 1 . 1 . 1 . . 1 . Unknown Exits Taken 5 | 1 1 1 . 1 . 1 . . . . . Scrap Searched 4 | . . 2 . 1 . 1 . . . . . Spaces Dug 38 | . . . . . . . . 10 . . 28 Terrain Destroyed 122 | . . . . . . 25 31 10 . . 56 Melee 13 | . . . . . . . . 10 . . 3 Projectile 56 | . . . . . . 25 31 . . . . AOE 53 | . . . . . . . . . . . 53 Terrain Rammed . | . . . . . . . . . . . . Walls Destroyed . | . . . . . . . . . . . . Machines Disabled . | . . . . . . . . . . . . Actions | -11 -10 -10 -9 -9 -9 -8 -8 -7 -7 -7 -7 --------- Run | Scr Mat Min Mat Min Exi Min Mat Fac Was Fac DSF Total 6541 | 52 702 686 1094 712 234 647 477 1657 130 18 132 Wait 317 | . 48 1 57 147 . . 1 59 3 . 1 Move 5706 | 39 569 657 894 542 224 637 396 1517 121 18 92 Hop . | . . . . . . . . . . . . Pick Up 70 | 6 15 7 18 1 1 1 12 6 2 . 1 Fast Attach 39 | 6 1 2 1 . 1 . 12 8 . . 8 Attach 27 | . . 2 3 1 1 1 10 7 1 . 1 Detach 2 | . . . . . 1 . 1 . . . . Swap 28 | . 4 . 9 1 . 1 3 4 1 . 5 Drop 90 | . 6 6 24 1 6 1 23 18 2 . 3 Fire 170 | . 53 8 86 17 . . 1 . . . 5 Melee 44 | . . . . . . . 3 25 . . 16 Ram . | . . . . . . . . . . . . Kick . | . . . . . . . . . . . . Crush 20 | 1 6 3 2 2 . 6 . . . . . Escape Stasis 13 | . . . . . . . . 13 . . . Rewire . | . . . . . . . . . . . . Trap 15 | . . . . . . . 15 . . . . Miscellaneous . | . . . . . . . . . . . . Route ------- -11/Scrapyard -10/Materials (discovered 4 exits: *Mat x3 / *Min) -10/Mines (discovered 2 exits: *Mat x2) -9/Materials (discovered 5 exits: *Mat x3 / *Min / Sto) -9/Mines (discovered 3 exits: *Mat x2 / *Exi) -9/Exiles (discovered 2 exits: *Min x2) -8/Mines (discovered 2 exits: *Mat x2) -8/Materials -7/Factory (discovered 4 exits: [*Fac x2] / *Low x2) -7/Waste -7/Factory -7/DSF History --------- Turn | Location | Event 38 | -11/Scrapyard | Discovered new exit (range 16) 77 | -11/Scrapyard | Entered Materials 320 | -10/Materials | Build established: Mutant 411 | -10/Materials | Discovered new exit (range 16) 515 | -10/Materials | Discovered new exit (range 7) 582 | -10/Materials | Discovered new exit (range 16) 1005 | -10/Materials | Discovered new exit (range 12) 1517 | -10/Materials | Entered Mines 1987 | -10/Mines | Discovered new exit (range 9) 2244 | -10/Mines | Met a Derelict who couldn't figure out how to use a Trap Extractor 2311 | -10/Mines | Found a hidden stash of uninstalled traps 2669 | -10/Mines | Discovered new exit (range 10) 2742 | -10/Mines | Received a Mining Laser from a helpful Derelict 3140 | -10/Mines | Entered Materials 3140 | -9/Materials | Evolved 2 slots: Propulsion x1, Utility x1 3141 | -9/Materials | Identified exit to Mines 3141 | -9/Materials | Identified exit to Storage 3351 | -9/Materials | Repaired Autogun 4022 | -9/Materials | Build established: Scavenger-Mutant 4040 | -9/Materials | Discovered new exit (range 8) 4295 | -9/Materials | Discovered new exit (range 9) 4688 | -9/Materials | Discovered new exit (range 16) 4895 | -9/Materials | Entered Mines 4896 | -9/Mines | Assembled infested the area 5348 | -9/Mines | Discovered new exit (range 8) 5547 | -9/Mines | Received a Rocket Launcher from a helpful Derelict 5598 | -9/Mines | Deemed a non-threat by the Exiles lab entrance 5600 | -9/Mines | Discovered new exit (range 5) 5811 | -9/Mines | Discovered new exit (range 5) 5961 | -9/Mines | Entered Exiles 5962 | -9/Exiles | Identified exit to Mines 6005 | -9/Exiles | Met 8R-AWN 6027 | -9/Exiles | Met EX-HEX 6077 | -9/Exiles | Met EX-BIN 6094 | -9/Exiles | Aligned with FarCom system 6096 | -9/Exiles | Given EX-Vault access code 6139 | -9/Exiles | Opened EX-Vault 6150 | -9/Exiles | Found Flying Fortress v7 6165 | -9/Exiles | Found AWS/Gauss 6204 | -9/Exiles | Warned to stay clear of 0b10 Research branches 6250 | -9/Exiles | Met EX-DEC 6258 | -9/Exiles | Learned location of Zion (-7) 6303 | -9/Exiles | Discovered exit to Mines (range 15) 6327 | -9/Exiles | Stole two prototypes: Flying Fortress v7, AWS/Gauss 6327 | -9/Exiles | Entered Mines 6329 | -8/Mines | Core integrity fell below 50% 6383 | -8/Mines | Destroyed 7 combat bots 6773 | -8/Mines | Discovered new exit (range 10) 7072 | -8/Mines | Discovered new exit (range 8) 7360 | -8/Mines | Entered Materials 7360 | -8/Materials | Evolved 2 slots: Utility x2 8295 | -8/Materials | Discovered new exit (range 14) 8364 | -8/Materials | Identified exit to Factory 8366 | -8/Materials | Entered Factory 8366 | -7/Factory | Evolved 2 slots: Utility x2 8368 | -7/Factory | FarCom data flow suspended 8455 | -7/Factory | Discovered new exit (range 12) 8473 | -7/Factory | Identified exit to Lower Caves 8667 | -7/Factory | Build established: Hacker-Mutant 8895 | -7/Factory | Discovered new exit (range 6) 8951 | -7/Factory | Found Prototype Launcher 8951 | -7/Factory | Identified Rocket Array 9168 | -7/Factory | Discovered new exit (range 11) 9178 | -7/Factory | Manually triggered Chute Trap 9178 | -7/Factory | Sucked down chute 9178 | -7/Factory | Entered Waste 9184 | -7/Waste | Spotted C-40 Crusher 9191 | -7/Waste | Spotted C-40 Crusher 9193 | -7/Waste | EMP discharged 9193 | -7/Waste | Spotted C-40 Crusher 9219 | -7/Waste | Spotted C-40 Crusher 9223 | -7/Waste | Spotted C-40 Crusher 9225 | -7/Waste | Spotted C-40 Crusher 9233 | -7/Waste | Discovered new exit (range 10) 9237 | -7/Waste | Identified exit to Factory 9238 | -7/Waste | Entered Factory 9246 | -7/Factory | Identified exit to DSF 9246 | -7/Factory | Entered DSF 9263 | -7/DSF | Additional patrols routed to DSF 9351 | -7/DSF | Core integrity fell below 50% 9367 | -7/DSF | Core integrity fell below 20% 9377 | -7/DSF | Destroyed by G-47 Trooper with Particle Gun Last Messages --------------- 09354_ Acquired 8 matter. 09355_ Trap Extractor severed. 09358_ Acquired Imp. Proton Missile Launcher. 09359_ The unstable cave ceiling collapses. 09361_ Imp. Proton Missile Launcher severed. 09362_ Acquired Imp. Proton Missile Launcher. 09364_ Dropped Imp. Proton Missile Launcher. 09366_ Penetrated by Slug. 09366_ Knocked back. 09371_ The unstable cave ceiling collapses. 09372_ Med. Storage Unit destroyed. 09372_ Knocked back. 09373_ Acquired Corrupted Surge Thruster. 09373_ Integrated Corrupted Surge Thruster (+1). 09373_ Corrupted Surge Thruster temporarily disabled. 09376_ C-30 ARC bursts open, deploying its payload. 09376_ L-41 Fighter unfolds itself. 09376_ G-47 Trooper unfolds itself. 09377_ Surge Thruster destroyed. 09377_ Knocked back. Map ----- +----------------------------------------------------+ | | | ??????????????????????????????????????????????? | | ??????????????????????????????????????????????? | | ??????????????????????????????????????????????? | | ??????????????????????????????????????##??????? | | ?????????????????????????????????????#""??????? | | ??????????????????????????????########"#??????? | | ????????????????????#########?# ##"####???? | | ????????????????????# !!! ### #"""""#???? | | ????????????????????# !!! #]]] """""#???? | | ????????????????????# = ""##"?? | | ????????????????????# = """""?? | | ????????????????????### ###]%* ""###?? | | ????????????????????### ### ! # ###???? | | ????????????????????# !! ## ## ##????? | | ????????????????????# !!### #]] #????? | | ????????????????????# !!########]] #????? | | ????????????????????### ##;#?????### ##????? | | ????????????????????#!! !!##?????#[[ #????? | | ????????????????????#!! !!#??????#[[ #????? | | ????????????????????#!! !! ####???#[[ #????? | | ????????????????##??### ####"####"## ###???? | | ????????????????#!!??## a###]]]" ## ]]#???? | | ???????!! ##===#!!!##a #]]] ## ]]#???? | | ??????? % ! %!% %%##??? | | ??????? g @ c ! = % %%%"#??? | | ??????? %lg !H %%##??? | | ???????]] ##!!!#]]]##a /%% # ## **#???? | | ????????????????#]]]?## g# #= ## **#???? | | ????????????????###???# a # ##########???? | | ?????????????????????!! !!# #????????????? | | ????????????????????#!! !!# #???????????? | | ????????????????????#!! g !!# #???????????? | | ????????????????????###g #########???????????? | | ????????????????????? ]???????????????????? | | ????????????????????# ]???????????????????? | | ????????????????????# ]]??????????????????? | | ????????????????????### ##??????????????????? | | ??????????????????????# #???????????????????? | | ?????????????????????? ???????????????????? | | ??????????????????????? ????????????????????? | | ??????????????????????????????????????????????? | | ??????????????????????????????????????????????? | | ??????????????????????????????????????????????? | | ??????????????????????????????????????????????? | | ??????????????????????????????????????????????? | | ??????????????????????????????????????????????? | | ??????????????????????????????????????????????? | | ??????????????????????????????????????????????? | | ??????????????????????????????????????????????? | +----------------------------------------------------+ Best States ------------- Heat Dissipation 34 Energy Generation 14 Energy Capacity 465 Matter Stores 450 Matter Capacity 450 Sight Range 16 Robot Scan Range 15 Terrain Scan Density 10 Corruption Block 8 Armor Coverage 150 Evasion (%) 56 Targeting Accuracy 12 Recoil Reduction 3 Offensive Hacking 40 Authchip Count 1 Trap Extractor Capacity 4 Item Schematics ----------------- Hacking Suite | -9/Materials | Scanalyzed Flight Unit | -9/Materials | Scanalyzed Med. Storage Unit | -9/Materials | Scanalyzed Aerolev Unit | -7/Factory | Scanalyzed Mni. Grenade Launcher | -7/Factory | Scanalyzed Imp. Corruption Screen | -7/Factory | Hacked Robot Schematics ------------------ None Fabricated ------------ Nothing Alien Tech Used ----------------- None Achievements -------------- None Challenges ------------ None Game ------ Seed FusionDimensionalVibroblade Manual? 0 Play Time 00:54:28 Cumulative 336.6 hours Start 2022.04.15 @ 00:34:17 End 2022.04.15 @ 01:27:55 Sessions 1 Manual Loads 0 Difficulty Rogue Special Mode None Game No. 353 Rogue 353 Adventurer 0 Explorer 0 Win Type - Total 19 Types 11/2/3/2/0/0/0/1/0 Lore% 90 Gallery% 86 Achievement% 74 Wizard Run 0 Options --------- ASCII 0 Keyboard 0 Movement Arrows Keybinds 0 Fullscreen 1 Font 18/Smallcaps Map View 76x50 Tactical HUD 1 Map Filters NONE Filters NONE Steam 1 RUN: a4853350-24b0-424e-aa71-40682db094d8